{"text_format":"1","workbook":"xlsx","n_sheets":4,"sheets":["Produktionsanlæg","Distributionsanlæg","Fællesfunktionsanlæg","Drop downliste"],"not_rendered":{"charts":0,"images":0,"macros":1,"external_links":0,"defined_names":4,"comments":0,"pivot_tables":0},"unopened":[],"bounds":{"document_bytes":16777216,"sheet_cells":100000,"rows_first":2000,"rows_last":500,"rows_between":2000,"halvings":0,"cell_chars":16384,"cell_head_chars":4096},"cells_cut":0,"cells_raw":0,"read":"whole","date_system":"1900"}

{"sheet":"Produktionsanlæg","index":0,"n_rows":562,"n_cols":6,"rows_kept":562,"cut":false,"hidden":false,"merged":[[0,5,1,5],[0,0,1,0],[0,1,1,1],[0,2,1,2],[0,3,1,3],[0,4,1,4]]}
["Produktionsanlæg","Enhed","Standard-levetid","Samlet mængde per 31/12-2014","Samlet mængde per 31/12-2015","Bemærk-ninger"]
[]
["Renseanlæg 1"]
["Mindre renseanlæg"]
["Mindre renseanlæg < 5.000 PE uden mulighed for opdeling","PE",40,0,0]
["Renseanlæg >= 5.000 PE, Vandbehandling"]
["Indløb med riste, Konstruktioner","PE",60,0,0]
["Indløb med riste, Mek/EL","PE",20,0,0]
["Indløb med riste, SRO","PE",10,0,0]
["Sand- og fedtfang, Kontruktioner","PE",60,0,0]
["Sand- og fedtfang, Mek/EL","PE",20,0,0]
["Sand- og fedtfang, SRO","PE",10,0,0]
["Forklaring, Konstruktioner","PE",60,0,0]
["Forklaring, Mek/EL","PE",20,0,0]
["Forklaring, SRO","PE",10,0,0]
["Beluftningstanke, Konstruktioner","PE",60,0,0]
["Beluftningstanke, Mek/EL","PE",20,0,0]
["Beluftningstanke, SRO","PE",10,0,0]
["Efterklaringstanke, Konstruktioner","PE",60,0,0]
["Efterklaringstanke, Mek/El","PE",20,0,0]
["Efterklaringstanke, SRO","PE",10,0,0]
["Efterbehandlingsanlæg (sandfilter), Konstruktioner","PE",60,0,0]
["Efterbehandlingsanlæg (sandfilter), Mek/EL","PE",20,0,0]
["Efterbehandlingsanlæg (sandfilter), SRO","PE",10,0,0]
["Renseanlæg >= 5.000 PE, Slambehandling"]
["Forafvanding, slam, Konstruktion","PE",60,0,0]
["Forafvanding, slam, Mek/EL","PE",20,0,0]
["Forafvanding, slam, SRO","PE",10,0,0]
["Rådnetanke, slam, Konstruktioner","PE",60,0,0]
["Rådnetanke, slam, Mek/EL","PE",20,0,0]
["Rådnetanke, slam, SRO","PE",10,0,0]
["Gasdisponering, Konstruktioner","PE",60,0,0]
["Gasdisponering, Mek/EL","PE",20,0,0]
["Gasdisponering, SRO","PE",10,0,0]
["Gasdisponering - elproduktionsanlæg, Konstruktioner","PE",60,0,0]
["Gasdisponering - elproduktionsanlæg, Mek/EL","PE",20,0,0]
["Gasdisponering - elproduktionsanlæg, SRO","PE",10,0,0]
["Slutafvanding, slam - lavteknologisk (slambede), Konstruktioner","PE",60,0,0]
["Slutafvanding, slam - lavteknologisk (slambede), Mek/EL","PE",20,0,0]
["Slutafvanding, slam - lavteknologisk (slambede), SRO","PE",10,0,0]
["Slutafvanding, slam - højteknologisk (centrifuger), Konstruktioner","PE",60,0,0]
["Slutafvanding, slam - højteknologisk (centrifuger), Mek/El","PE",20,0,0]
["Slutafvanding, slam - højteknologisk (centrifuger), SRO","PE",10,0,0]
["Renseanlæg >= 5.000 PE, Slamdisponering"]
["Slutdisponering, slam - lavteknologisk (slammineralisering), Konstruktioner","PE",60,0,0]
["Slutdisponering, slam - lavteknologisk (slammineralisering), Mek/EL","PE",20,0,0]
["Slutdisponering, slam - lavteknologisk (slammineralisering), SRO","PE",10,0,0]
["Slutdisponering, slam - højteknologisk (slamtørring), Konstruktioner","PE",60,0,0]
["Slutdisponering, slam - højteknologisk (slamtørring), Mek/EL","PE",20,0,0]
["Slutdisponering, slam - højteknologisk (slamtørring), SRO","PE",10,0,0]
["Slutdisponering, slam - højteknologisk (slamtørring og -forbrænding), Konstruktioner","PE",60,0,0]
["Slutdisponering, slam - højteknologisk (slamtørring og -forbrænding), Mek/EL","PE",20,0,0]
["Slutdisponering, slam - højteknologisk (slamtørring og -forbrænding), SRO","PE",10,0,0]
["Renseanlæg 2"]
["Mindre renseanlæg"]
["Mindre renseanlæg < 5.000 PE uden mulighed for opdeling","PE",40,50,{"$f":"D56","v":50}]
["Renseanlæg >= 5.000 PE, Vandbehandling"]
["Indløb med riste, Konstruktioner","PE",60,0,{"$f":"D58","v":0}]
["Indløb med riste, Mek/EL","PE",20,0,{"$f":"D59","v":0}]
["Indløb med riste, SRO","PE",10,0,0]
["Sand- og fedtfang, Kontruktioner","PE",60,0,0]
["Sand- og fedtfang, Mek/EL","PE",20,0,0]
["Sand- og fedtfang, SRO","PE",10,0,0]
["Forklaring, Konstruktioner","PE",60,0,0]
["Forklaring, Mek/EL","PE",20,0,0]
["Forklaring, SRO","PE",10,0,0]
["Beluftningstanke, Konstruktioner","PE",60,0,0]
["Beluftningstanke, Mek/EL","PE",20,0,0]
["Beluftningstanke, SRO","PE",10,0,0]
["Efterklaringstanke, Konstruktioner","PE",60,0,0]
["Efterklaringstanke, Mek/El","PE",20,0,0]
["Efterklaringstanke, SRO","PE",10,0,0]
["Efterbehandlingsanlæg (sandfilter), Konstruktioner","PE",60,0,0]
["Efterbehandlingsanlæg (sandfilter), Mek/EL","PE",20,0,0]
["Efterbehandlingsanlæg (sandfilter), SRO","PE",10,0,0]
["Renseanlæg >= 5.000 PE, Slambehandling"]
["Forafvanding, slam, Konstruktion","PE",60,0,{"$f":"D77","v":0}]
["Forafvanding, slam, Mek/EL","PE",20,0,{"$f":"D78","v":0}]
["Forafvanding, slam, SRO","PE",10,0,0]
["Rådnetanke, slam, Konstruktioner","PE",60,0,0]
["Rådnetanke, slam, Mek/EL","PE",20,0,0]
["Rådnetanke, slam, SRO","PE",10,0,0]
["Gasdisponering, Konstruktioner","PE",60,0,0]
["Gasdisponering, Mek/EL","PE",20,0,0]
["Gasdisponering, SRO","PE",10,0,0]
["Gasdisponering - elproduktionsanlæg, Konstruktioner","PE",60,0,0]
["Gasdisponering - elproduktionsanlæg, Mek/EL","PE",20,0,0]
["Gasdisponering - elproduktionsanlæg, SRO","PE",10,0,0]
["Slutafvanding, slam - lavteknologisk (slambede), Konstruktioner","PE",60,0,0]
["Slutafvanding, slam - lavteknologisk (slambede), Mek/EL","PE",20,0,0]
["Slutafvanding, slam - lavteknologisk (slambede), SRO","PE",10,0,0]
["Slutafvanding, slam - højteknologisk (centrifuger), Konstruktioner","PE",60,0,0]
["Slutafvanding, slam - højteknologisk (centrifuger), Mek/El","PE",20,0,0]
["Slutafvanding, slam - højteknologisk (centrifuger), SRO","PE",10,0,0]
["Renseanlæg >= 5.000 PE, Slamdisponering"]
["Slutdisponering, slam - lavteknologisk (slammineralisering), Konstruktioner","PE",60,0,{"$f":"D96","v":0}]
["Slutdisponering, slam - lavteknologisk (slammineralisering), Mek/EL","PE",20,0,{"$f":"D97","v":0}]
["Slutdisponering, slam - lavteknologisk (slammineralisering), SRO","PE",10,0,0]
["Slutdisponering, slam - højteknologisk (slamtørring), Konstruktioner","PE",60,0,0]
["Slutdisponering, slam - højteknologisk (slamtørring), Mek/EL","PE",20,0,0]
["Slutdisponering, slam - højteknologisk (slamtørring), SRO","PE",10,0,0]
["Slutdisponering, slam - højteknologisk (slamtørring og -forbrænding), Konstruktioner","PE",60,0,0]
["Slutdisponering, slam - højteknologisk (slamtørring og -forbrænding), Mek/EL","PE",20,0,0]
["Slutdisponering, slam - højteknologisk (slamtørring og -forbrænding), SRO","PE",10,0,0]
["Renseanlæg 3"]
["Mindre renseanlæg"]
["Mindre renseanlæg < 5.000 PE uden mulighed for opdeling","PE",40,0,{"$f":"D107","v":0}]
["Renseanlæg >= 5.000 PE, Vandbehandling"]
["Indløb med riste, Konstruktioner","PE",60,0,{"$f":"D109","v":0}]
["Indløb med riste, Mek/EL","PE",20,0,{"$f":"D110","v":0}]
["Indløb med riste, SRO","PE",10,0,0]
["Sand- og fedtfang, Kontruktioner","PE",60,0,0]
["Sand- og fedtfang, Mek/EL","PE",20,0,0]
["Sand- og fedtfang, SRO","PE",10,0,0]
["Forklaring, Konstruktioner","PE",60,0,0]
["Forklaring, Mek/EL","PE",20,0,0]
["Forklaring, SRO","PE",10,0,0]
["Beluftningstanke, Konstruktioner","PE",60,0,0]
["Beluftningstanke, Mek/EL","PE",20,0,0]
["Beluftningstanke, SRO","PE",10,0,0]
["Efterklaringstanke, Konstruktioner","PE",60,0,0]
["Efterklaringstanke, Mek/El","PE",20,0,0]
["Efterklaringstanke, SRO","PE",10,0,0]
["Efterbehandlingsanlæg (sandfilter), Konstruktioner","PE",60,0,0]
["Efterbehandlingsanlæg (sandfilter), Mek/EL","PE",20,0,0]
["Efterbehandlingsanlæg (sandfilter), SRO","PE",10,0,0]
["Renseanlæg >= 5.000 PE, Slambehandling"]
["Forafvanding, slam, Konstruktion","PE",60,0,{"$f":"D128","v":0}]
["Forafvanding, slam, Mek/EL","PE",20,0,{"$f":"D129","v":0}]
["Forafvanding, slam, SRO","PE",10,0,0]
["Rådnetanke, slam, Konstruktioner","PE",60,0,0]
["Rådnetanke, slam, Mek/EL","PE",20,0,0]
["Rådnetanke, slam, SRO","PE",10,0,0]
["Gasdisponering, Konstruktioner","PE",60,0,0]
["Gasdisponering, Mek/EL","PE",20,0,0]
["Gasdisponering, SRO","PE",10,0,0]
["Gasdisponering - elproduktionsanlæg, Konstruktioner","PE",60,0,0]
["Gasdisponering - elproduktionsanlæg, Mek/EL","PE",20,0,0]
["Gasdisponering - elproduktionsanlæg, SRO","PE",10,0,0]
["Slutafvanding, slam - lavteknologisk (slambede), Konstruktioner","PE",60,0,0]
["Slutafvanding, slam - lavteknologisk (slambede), Mek/EL","PE",20,0,0]
["Slutafvanding, slam - lavteknologisk (slambede), SRO","PE",10,0,0]
["Slutafvanding, slam - højteknologisk (centrifuger), Konstruktioner","PE",60,0,0]
["Slutafvanding, slam - højteknologisk (centrifuger), Mek/El","PE",20,0,0]
["Slutafvanding, slam - højteknologisk (centrifuger), SRO","PE",10,0,0]
["Renseanlæg >= 5.000 PE, Slamdisponering"]
["Slutdisponering, slam - lavteknologisk (slammineralisering), Konstruktioner","PE",60,0,{"$f":"D147","v":0}]
["Slutdisponering, slam - lavteknologisk (slammineralisering), Mek/EL","PE",20,0,{"$f":"D148","v":0}]
["Slutdisponering, slam - lavteknologisk (slammineralisering), SRO","PE",10,0,0]
["Slutdisponering, slam - højteknologisk (slamtørring), Konstruktioner","PE",60,0,0]
["Slutdisponering, slam - højteknologisk (slamtørring), Mek/EL","PE",20,0,0]
["Slutdisponering, slam - højteknologisk (slamtørring), SRO","PE",10,0,0]
["Slutdisponering, slam - højteknologisk (slamtørring og -forbrænding), Konstruktioner","PE",60,0,0]
["Slutdisponering, slam - højteknologisk (slamtørring og -forbrænding), Mek/EL","PE",20,0,0]
["Slutdisponering, slam - højteknologisk (slamtørring og -forbrænding), SRO","PE",10,0,0]
["Renseanlæg 4"]
["Mindre renseanlæg"]
["Mindre renseanlæg < 5.000 PE uden mulighed for opdeling","PE",40,0,{"$f":"D158","v":0}]
["Renseanlæg >= 5.000 PE, Vandbehandling"]
["Indløb med riste, Konstruktioner","PE",60,0,{"$f":"D160","v":0}]
["Indløb med riste, Mek/EL","PE",20,0,{"$f":"D161","v":0}]
["Indløb med riste, SRO","PE",10,0,0]
["Sand- og fedtfang, Kontruktioner","PE",60,0,0]
["Sand- og fedtfang, Mek/EL","PE",20,0,0]
["Sand- og fedtfang, SRO","PE",10,0,0]
["Forklaring, Konstruktioner","PE",60,0,0]
["Forklaring, Mek/EL","PE",20,0,0]
["Forklaring, SRO","PE",10,0,0]
["Beluftningstanke, Konstruktioner","PE",60,0,0]
["Beluftningstanke, Mek/EL","PE",20,0,0]
["Beluftningstanke, SRO","PE",10,0,0]
["Efterklaringstanke, Konstruktioner","PE",60,0,0]
["Efterklaringstanke, Mek/El","PE",20,0,0]
["Efterklaringstanke, SRO","PE",10,0,0]
["Efterbehandlingsanlæg (sandfilter), Konstruktioner","PE",60,0,0]
["Efterbehandlingsanlæg (sandfilter), Mek/EL","PE",20,0,0]
["Efterbehandlingsanlæg (sandfilter), SRO","PE",10,0,0]
["Renseanlæg >= 5.000 PE, Slambehandling"]
["Forafvanding, slam, Konstruktion","PE",60,0,{"$f":"D179","v":0}]
["Forafvanding, slam, Mek/EL","PE",20,0,{"$f":"D180","v":0}]
["Forafvanding, slam, SRO","PE",10,0,0]
["Rådnetanke, slam, Konstruktioner","PE",60,0,0]
["Rådnetanke, slam, Mek/EL","PE",20,0,0]
["Rådnetanke, slam, SRO","PE",10,0,0]
["Gasdisponering, Konstruktioner","PE",60,0,0]
["Gasdisponering, Mek/EL","PE",20,0,0]
["Gasdisponering, SRO","PE",10,0,0]
["Gasdisponering - elproduktionsanlæg, Konstruktioner","PE",60,0,0]
["Gasdisponering - elproduktionsanlæg, Mek/EL","PE",20,0,0]
["Gasdisponering - elproduktionsanlæg, SRO","PE",10,0,0]
["Slutafvanding, slam - lavteknologisk (slambede), Konstruktioner","PE",60,0,0]
["Slutafvanding, slam - lavteknologisk (slambede), Mek/EL","PE",20,0,0]
["Slutafvanding, slam - lavteknologisk (slambede), SRO","PE",10,0,0]
["Slutafvanding, slam - højteknologisk (centrifuger), Konstruktioner","PE",60,0,0]
["Slutafvanding, slam - højteknologisk (centrifuger), Mek/El","PE",20,0,0]
["Slutafvanding, slam - højteknologisk (centrifuger), SRO","PE",10,0,0]
["Renseanlæg >= 5.000 PE, Slamdisponering"]
["Slutdisponering, slam - lavteknologisk (slammineralisering), Konstruktioner","PE",60,0,{"$f":"D198","v":0}]
["Slutdisponering, slam - lavteknologisk (slammineralisering), Mek/EL","PE",20,0,{"$f":"D199","v":0}]
["Slutdisponering, slam - lavteknologisk (slammineralisering), SRO","PE",10,0,0]
["Slutdisponering, slam - højteknologisk (slamtørring), Konstruktioner","PE",60,0,0]
["Slutdisponering, slam - højteknologisk (slamtørring), Mek/EL","PE",20,0,0]
["Slutdisponering, slam - højteknologisk (slamtørring), SRO","PE",10,0,0]
["Slutdisponering, slam - højteknologisk (slamtørring og -forbrænding), Konstruktioner","PE",60,0,0]
["Slutdisponering, slam - højteknologisk (slamtørring og -forbrænding), Mek/EL","PE",20,0,0]
["Slutdisponering, slam - højteknologisk (slamtørring og -forbrænding), SRO","PE",10,0,0]
["Renseanlæg 5"]
["Mindre renseanlæg"]
["Mindre renseanlæg < 5.000 PE uden mulighed for opdeling","PE",40,0,{"$f":"D209","v":0}]
["Renseanlæg >= 5.000 PE, Vandbehandling"]
["Indløb med riste, Konstruktioner","PE",60,0,{"$f":"D211","v":0}]
["Indløb med riste, Mek/EL","PE",20,0,{"$f":"D212","v":0}]
["Indløb med riste, SRO","PE",10,0,0]
["Sand- og fedtfang, Kontruktioner","PE",60,0,0]
["Sand- og fedtfang, Mek/EL","PE",20,0,0]
["Sand- og fedtfang, SRO","PE",10,0,0]
["Forklaring, Konstruktioner","PE",60,0,0]
["Forklaring, Mek/EL","PE",20,0,0]
["Forklaring, SRO","PE",10,0,0]
["Beluftningstanke, Konstruktioner","PE",60,0,0]
["Beluftningstanke, Mek/EL","PE",20,0,0]
["Beluftningstanke, SRO","PE",10,0,0]
["Efterklaringstanke, Konstruktioner","PE",60,0,0]
["Efterklaringstanke, Mek/El","PE",20,0,0]
["Efterklaringstanke, SRO","PE",10,0,0]
["Efterbehandlingsanlæg (sandfilter), Konstruktioner","PE",60,0,0]
["Efterbehandlingsanlæg (sandfilter), Mek/EL","PE",20,0,0]
["Efterbehandlingsanlæg (sandfilter), SRO","PE",10,0,0]
["Renseanlæg >= 5.000 PE, Slambehandling"]
["Forafvanding, slam, Konstruktion","PE",60,0,{"$f":"D230","v":0}]
["Forafvanding, slam, Mek/EL","PE",20,0,{"$f":"D231","v":0}]
["Forafvanding, slam, SRO","PE",10,0,0]
["Rådnetanke, slam, Konstruktioner","PE",60,0,0]
["Rådnetanke, slam, Mek/EL","PE",20,0,0]
["Rådnetanke, slam, SRO","PE",10,0,0]
["Gasdisponering, Konstruktioner","PE",60,0,0]
["Gasdisponering, Mek/EL","PE",20,0,0]
["Gasdisponering, SRO","PE",10,0,0]
["Gasdisponering - elproduktionsanlæg, Konstruktioner","PE",60,0,0]
["Gasdisponering - elproduktionsanlæg, Mek/EL","PE",20,0,0]
["Gasdisponering - elproduktionsanlæg, SRO","PE",10,0,0]
["Slutafvanding, slam - lavteknologisk (slambede), Konstruktioner","PE",60,0,0]
["Slutafvanding, slam - lavteknologisk (slambede), Mek/EL","PE",20,0,0]
["Slutafvanding, slam - lavteknologisk (slambede), SRO","PE",10,0,0]
["Slutafvanding, slam - højteknologisk (centrifuger), Konstruktioner","PE",60,0,0]
["Slutafvanding, slam - højteknologisk (centrifuger), Mek/El","PE",20,0,0]
["Slutafvanding, slam - højteknologisk (centrifuger), SRO","PE",10,0,0]
["Renseanlæg >= 5.000 PE, Slamdisponering"]
["Slutdisponering, slam - lavteknologisk (slammineralisering), Konstruktioner","PE",60,0,{"$f":"D249","v":0}]
["Slutdisponering, slam - lavteknologisk (slammineralisering), Mek/EL","PE",20,0,{"$f":"D250","v":0}]
["Slutdisponering, slam - lavteknologisk (slammineralisering), SRO","PE",10,0,0]
["Slutdisponering, slam - højteknologisk (slamtørring), Konstruktioner","PE",60,0,0]
["Slutdisponering, slam - højteknologisk (slamtørring), Mek/EL","PE",20,0,0]
["Slutdisponering, slam - højteknologisk (slamtørring), SRO","PE",10,0,0]
["Slutdisponering, slam - højteknologisk (slamtørring og -forbrænding), Konstruktioner","PE",60,0,0]
["Slutdisponering, slam - højteknologisk (slamtørring og -forbrænding), Mek/EL","PE",20,0,0]
["Slutdisponering, slam - højteknologisk (slamtørring og -forbrænding), SRO","PE",10,0,0]
["Renseanlæg 6"]
["Mindre renseanlæg"]
["Mindre renseanlæg < 5.000 PE uden mulighed for opdeling","PE",40,0,{"$f":"D260","v":0}]
["Renseanlæg >= 5.000 PE, Vandbehandling"]
["Indløb med riste, Konstruktioner","PE",60,0,{"$f":"D262","v":0}]
["Indløb med riste, Mek/EL","PE",20,0,{"$f":"D263","v":0}]
["Indløb med riste, SRO","PE",10,0,0]
["Sand- og fedtfang, Kontruktioner","PE",60,0,0]
["Sand- og fedtfang, Mek/EL","PE",20,0,0]
["Sand- og fedtfang, SRO","PE",10,0,0]
["Forklaring, Konstruktioner","PE",60,0,0]
["Forklaring, Mek/EL","PE",20,0,0]
["Forklaring, SRO","PE",10,0,0]
["Beluftningstanke, Konstruktioner","PE",60,0,0]
["Beluftningstanke, Mek/EL","PE",20,0,0]
["Beluftningstanke, SRO","PE",10,0,0]
["Efterklaringstanke, Konstruktioner","PE",60,0,0]
["Efterklaringstanke, Mek/El","PE",20,0,0]
["Efterklaringstanke, SRO","PE",10,0,0]
["Efterbehandlingsanlæg (sandfilter), Konstruktioner","PE",60,0,0]
["Efterbehandlingsanlæg (sandfilter), Mek/EL","PE",20,0,0]
["Efterbehandlingsanlæg (sandfilter), SRO","PE",10,0,0]
["Renseanlæg >= 5.000 PE, Slambehandling"]
["Forafvanding, slam, Konstruktion","PE",60,0,{"$f":"D281","v":0}]
["Forafvanding, slam, Mek/EL","PE",20,0,{"$f":"D282","v":0}]
["Forafvanding, slam, SRO","PE",10,0,0]
["Rådnetanke, slam, Konstruktioner","PE",60,0,0]
["Rådnetanke, slam, Mek/EL","PE",20,0,0]
["Rådnetanke, slam, SRO","PE",10,0,0]
["Gasdisponering, Konstruktioner","PE",60,0,0]
["Gasdisponering, Mek/EL","PE",20,0,0]
["Gasdisponering, SRO","PE",10,0,0]
["Gasdisponering - elproduktionsanlæg, Konstruktioner","PE",60,0,0]
["Gasdisponering - elproduktionsanlæg, Mek/EL","PE",20,0,0]
["Gasdisponering - elproduktionsanlæg, SRO","PE",10,0,0]
["Slutafvanding, slam - lavteknologisk (slambede), Konstruktioner","PE",60,0,0]
["Slutafvanding, slam - lavteknologisk (slambede), Mek/EL","PE",20,0,0]
["Slutafvanding, slam - lavteknologisk (slambede), SRO","PE",10,0,0]
["Slutafvanding, slam - højteknologisk (centrifuger), Konstruktioner","PE",60,0,0]
["Slutafvanding, slam - højteknologisk (centrifuger), Mek/El","PE",20,0,0]
["Slutafvanding, slam - højteknologisk (centrifuger), SRO","PE",10,0,0]
["Renseanlæg >= 5.000 PE, Slamdisponering"]
["Slutdisponering, slam - lavteknologisk (slammineralisering), Konstruktioner","PE",60,0,{"$f":"D300","v":0}]
["Slutdisponering, slam - lavteknologisk (slammineralisering), Mek/EL","PE",20,0,{"$f":"D301","v":0}]
["Slutdisponering, slam - lavteknologisk (slammineralisering), SRO","PE",10,0,0]
["Slutdisponering, slam - højteknologisk (slamtørring), Konstruktioner","PE",60,0,0]
["Slutdisponering, slam - højteknologisk (slamtørring), Mek/EL","PE",20,0,0]
["Slutdisponering, slam - højteknologisk (slamtørring), SRO","PE",10,0,0]
["Slutdisponering, slam - højteknologisk (slamtørring og -forbrænding), Konstruktioner","PE",60,0,0]
["Slutdisponering, slam - højteknologisk (slamtørring og -forbrænding), Mek/EL","PE",20,0,0]
["Slutdisponering, slam - højteknologisk (slamtørring og -forbrænding), SRO","PE",10,0,0]
["Renseanlæg 7"]
["Mindre renseanlæg"]
["Mindre renseanlæg < 5.000 PE uden mulighed for opdeling","PE",40,0,{"$f":"D311","v":0}]
["Renseanlæg >= 5.000 PE, Vandbehandling"]
["Indløb med riste, Konstruktioner","PE",60,0,{"$f":"D313","v":0}]
["Indløb med riste, Mek/EL","PE",20,0,{"$f":"D314","v":0}]
["Indløb med riste, SRO","PE",10,0,0]
["Sand- og fedtfang, Kontruktioner","PE",60,0,0]
["Sand- og fedtfang, Mek/EL","PE",20,0,0]
["Sand- og fedtfang, SRO","PE",10,0,0]
["Forklaring, Konstruktioner","PE",60,0,0]
["Forklaring, Mek/EL","PE",20,0,0]
["Forklaring, SRO","PE",10,0,0]
["Beluftningstanke, Konstruktioner","PE",60,0,0]
["Beluftningstanke, Mek/EL","PE",20,0,0]
["Beluftningstanke, SRO","PE",10,0,0]
["Efterklaringstanke, Konstruktioner","PE",60,0,0]
["Efterklaringstanke, Mek/El","PE",20,0,0]
["Efterklaringstanke, SRO","PE",10,0,0]
["Efterbehandlingsanlæg (sandfilter), Konstruktioner","PE",60,0,0]
["Efterbehandlingsanlæg (sandfilter), Mek/EL","PE",20,0,0]
["Efterbehandlingsanlæg (sandfilter), SRO","PE",10,0,0]
["Renseanlæg >= 5.000 PE, Slambehandling"]
["Forafvanding, slam, Konstruktion","PE",60,0,{"$f":"D332","v":0}]
["Forafvanding, slam, Mek/EL","PE",20,0,{"$f":"D333","v":0}]
["Forafvanding, slam, SRO","PE",10,0,0]
["Rådnetanke, slam, Konstruktioner","PE",60,0,0]
["Rådnetanke, slam, Mek/EL","PE",20,0,0]
["Rådnetanke, slam, SRO","PE",10,0,0]
["Gasdisponering, Konstruktioner","PE",60,0,0]
["Gasdisponering, Mek/EL","PE",20,0,0]
["Gasdisponering, SRO","PE",10,0,0]
["Gasdisponering - elproduktionsanlæg, Konstruktioner","PE",60,0,0]
["Gasdisponering - elproduktionsanlæg, Mek/EL","PE",20,0,0]
["Gasdisponering - elproduktionsanlæg, SRO","PE",10,0,0]
["Slutafvanding, slam - lavteknologisk (slambede), Konstruktioner","PE",60,0,0]
["Slutafvanding, slam - lavteknologisk (slambede), Mek/EL","PE",20,0,0]
["Slutafvanding, slam - lavteknologisk (slambede), SRO","PE",10,0,0]
["Slutafvanding, slam - højteknologisk (centrifuger), Konstruktioner","PE",60,0,0]
["Slutafvanding, slam - højteknologisk (centrifuger), Mek/El","PE",20,0,0]
["Slutafvanding, slam - højteknologisk (centrifuger), SRO","PE",10,0,0]
["Renseanlæg >= 5.000 PE, Slamdisponering"]
["Slutdisponering, slam - lavteknologisk (slammineralisering), Konstruktioner","PE",60,0,{"$f":"D351","v":0}]
["Slutdisponering, slam - lavteknologisk (slammineralisering), Mek/EL","PE",20,0,{"$f":"D352","v":0}]
["Slutdisponering, slam - lavteknologisk (slammineralisering), SRO","PE",10,0,0]
["Slutdisponering, slam - højteknologisk (slamtørring), Konstruktioner","PE",60,0,0]
["Slutdisponering, slam - højteknologisk (slamtørring), Mek/EL","PE",20,0,0]
["Slutdisponering, slam - højteknologisk (slamtørring), SRO","PE",10,0,0]
["Slutdisponering, slam - højteknologisk (slamtørring og -forbrænding), Konstruktioner","PE",60,0,0]
["Slutdisponering, slam - højteknologisk (slamtørring og -forbrænding), Mek/EL","PE",20,0,0]
["Slutdisponering, slam - højteknologisk (slamtørring og -forbrænding), SRO","PE",10,0,0]
["Renseanlæg 8"]
["Mindre renseanlæg"]
["Mindre renseanlæg < 5.000 PE uden mulighed for opdeling","PE",40]
["Renseanlæg >= 5.000 PE, Vandbehandling"]
["Indløb med riste, Konstruktioner","PE",60,104000,{"$f":"D364","v":104000}]
["Indløb med riste, Mek/EL","PE",20,104000,{"$f":"D365","v":104000}]
["Indløb med riste, SRO","PE",10,104000,104000]
["Sand- og fedtfang, Kontruktioner","PE",60,104000,104000]
["Sand- og fedtfang, Mek/EL","PE",20,104000,104000]
["Sand- og fedtfang, SRO","PE",10,104000,104000]
["Forklaring, Konstruktioner","PE",60,0,0]
["Forklaring, Mek/EL","PE",20,0,0]
["Forklaring, SRO","PE",10,0,0]
["Beluftningstanke, Konstruktioner","PE",60,104000,104000]
["Beluftningstanke, Mek/EL","PE",20,104000,104000]
["Beluftningstanke, SRO","PE",10,104000,104000]
["Efterklaringstanke, Konstruktioner","PE",60,104000,104000]
["Efterklaringstanke, Mek/El","PE",20,104000,104000]
["Efterklaringstanke, SRO","PE",10,104000,104000]
["Efterbehandlingsanlæg (sandfilter), Konstruktioner","PE",60,0,0]
["Efterbehandlingsanlæg (sandfilter), Mek/EL","PE",20,0,0]
["Efterbehandlingsanlæg (sandfilter), SRO","PE",10,0,0]
["Renseanlæg >= 5.000 PE, Slambehandling"]
["Forafvanding, slam, Konstruktion","PE",60,0,{"$f":"D383","v":0}]
["Forafvanding, slam, Mek/EL","PE",20,0,{"$f":"D384","v":0}]
["Forafvanding, slam, SRO","PE",10,0,0]
["Rådnetanke, slam, Konstruktioner","PE",60,62000,62000]
["Rådnetanke, slam, Mek/EL","PE",20,62000,62000]
["Rådnetanke, slam, SRO","PE",10,62000,62000]
["Gasdisponering, Konstruktioner","PE",60,0,0]
["Gasdisponering, Mek/EL","PE",20,0,0]
["Gasdisponering, SRO","PE",10,0,0]
["Gasdisponering - elproduktionsanlæg, Konstruktioner","PE",60,0,0]
["Gasdisponering - elproduktionsanlæg, Mek/EL","PE",20,0,0]
["Gasdisponering - elproduktionsanlæg, SRO","PE",10,0,0]
["Slutafvanding, slam - lavteknologisk (slambede), Konstruktioner","PE",60,0,0]
["Slutafvanding, slam - lavteknologisk (slambede), Mek/EL","PE",20,0,0]
["Slutafvanding, slam - lavteknologisk (slambede), SRO","PE",10,0,0]
["Slutafvanding, slam - højteknologisk (centrifuger), Konstruktioner","PE",60,62000,62000]
["Slutafvanding, slam - højteknologisk (centrifuger), Mek/El","PE",20,62000,62000]
["Slutafvanding, slam - højteknologisk (centrifuger), SRO","PE",10,62000,62000]
["Renseanlæg >= 5.000 PE, Slamdisponering"]
["Slutdisponering, slam - lavteknologisk (slammineralisering), Konstruktioner","PE",60,0,{"$f":"D402","v":0}]
["Slutdisponering, slam - lavteknologisk (slammineralisering), Mek/EL","PE",20,0,{"$f":"D403","v":0}]
["Slutdisponering, slam - lavteknologisk (slammineralisering), SRO","PE",10,0,0]
["Slutdisponering, slam - højteknologisk (slamtørring), Konstruktioner","PE",60,0,0]
["Slutdisponering, slam - højteknologisk (slamtørring), Mek/EL","PE",20,0,0]
["Slutdisponering, slam - højteknologisk (slamtørring), SRO","PE",10,0,0]
["Slutdisponering, slam - højteknologisk (slamtørring og -forbrænding), Konstruktioner","PE",60,0,0]
["Slutdisponering, slam - højteknologisk (slamtørring og -forbrænding), Mek/EL","PE",20,0,0]
["Slutdisponering, slam - højteknologisk (slamtørring og -forbrænding), SRO","PE",10,0,0]
["Renseanlæg 9"]
["Mindre renseanlæg"]
["Mindre renseanlæg < 5.000 PE uden mulighed for opdeling","PE",40,500,{"$f":"D413","v":500}]
["Renseanlæg >= 5.000 PE, Vandbehandling"]
["Indløb med riste, Konstruktioner","PE",60,0,{"$f":"D415","v":0}]
["Indløb med riste, Mek/EL","PE",20,0,{"$f":"D416","v":0}]
["Indløb med riste, SRO","PE",10,0,0]
["Sand- og fedtfang, Kontruktioner","PE",60,0,0]
["Sand- og fedtfang, Mek/EL","PE",20,0,0]
["Sand- og fedtfang, SRO","PE",10,0,0]
["Forklaring, Konstruktioner","PE",60,0,0]
["Forklaring, Mek/EL","PE",20,0,0]
["Forklaring, SRO","PE",10,0,0]
["Beluftningstanke, Konstruktioner","PE",60,0,0]
["Beluftningstanke, Mek/EL","PE",20,0,0]
["Beluftningstanke, SRO","PE",10,0,0]
["Efterklaringstanke, Konstruktioner","PE",60,0,0]
["Efterklaringstanke, Mek/El","PE",20,0,0]
["Efterklaringstanke, SRO","PE",10,0,0]
["Efterbehandlingsanlæg (sandfilter), Konstruktioner","PE",60,0,0]
["Efterbehandlingsanlæg (sandfilter), Mek/EL","PE",20,0,0]
["Efterbehandlingsanlæg (sandfilter), SRO","PE",10,0,0]
["Renseanlæg >= 5.000 PE, Slambehandling"]
["Forafvanding, slam, Konstruktion","PE",60,0,{"$f":"D434","v":0}]
["Forafvanding, slam, Mek/EL","PE",20,0,{"$f":"D435","v":0}]
["Forafvanding, slam, SRO","PE",10,0,0]
["Rådnetanke, slam, Konstruktioner","PE",60,0,0]
["Rådnetanke, slam, Mek/EL","PE",20,0,0]
["Rådnetanke, slam, SRO","PE",10,0,0]
["Gasdisponering, Konstruktioner","PE",60,0,0]
["Gasdisponering, Mek/EL","PE",20,0,0]
["Gasdisponering, SRO","PE",10,0,0]
["Gasdisponering - elproduktionsanlæg, Konstruktioner","PE",60,0,0]
["Gasdisponering - elproduktionsanlæg, Mek/EL","PE",20,0,0]
["Gasdisponering - elproduktionsanlæg, SRO","PE",10,0,0]
["Slutafvanding, slam - lavteknologisk (slambede), Konstruktioner","PE",60,0,0]
["Slutafvanding, slam - lavteknologisk (slambede), Mek/EL","PE",20,0,0]
["Slutafvanding, slam - lavteknologisk (slambede), SRO","PE",10,0,0]
["Slutafvanding, slam - højteknologisk (centrifuger), Konstruktioner","PE",60,0,0]
["Slutafvanding, slam - højteknologisk (centrifuger), Mek/El","PE",20,0,0]
["Slutafvanding, slam - højteknologisk (centrifuger), SRO","PE",10,0,0]
["Renseanlæg >= 5.000 PE, Slamdisponering"]
["Slutdisponering, slam - lavteknologisk (slammineralisering), Konstruktioner","PE",60,0,{"$f":"D453","v":0}]
["Slutdisponering, slam - lavteknologisk (slammineralisering), Mek/EL","PE",20,0,{"$f":"D454","v":0}]
["Slutdisponering, slam - lavteknologisk (slammineralisering), SRO","PE",10,0,0]
["Slutdisponering, slam - højteknologisk (slamtørring), Konstruktioner","PE",60,0,0]
["Slutdisponering, slam - højteknologisk (slamtørring), Mek/EL","PE",20,0,0]
["Slutdisponering, slam - højteknologisk (slamtørring), SRO","PE",10,0,0]
["Slutdisponering, slam - højteknologisk (slamtørring og -forbrænding), Konstruktioner","PE",60,0,0]
["Slutdisponering, slam - højteknologisk (slamtørring og -forbrænding), Mek/EL","PE",20,0,0]
["Slutdisponering, slam - højteknologisk (slamtørring og -forbrænding), SRO","PE",10,0,0]
["Renseanlæg 10"]
["Mindre renseanlæg"]
["Mindre renseanlæg < 5.000 PE uden mulighed for opdeling","PE",40,0,{"$f":"D464","v":0}]
["Renseanlæg >= 5.000 PE, Vandbehandling"]
["Indløb med riste, Konstruktioner","PE",60,0,0]
["Indløb med riste, Mek/EL","PE",20,0,0]
["Indløb med riste, SRO","PE",10,0,0]
["Sand- og fedtfang, Kontruktioner","PE",60,0,0]
["Sand- og fedtfang, Mek/EL","PE",20,0,0]
["Sand- og fedtfang, SRO","PE",10,0,0]
["Forklaring, Konstruktioner","PE",60,0,0]
["Forklaring, Mek/EL","PE",20,0,0]
["Forklaring, SRO","PE",10,0,0]
["Beluftningstanke, Konstruktioner","PE",60,0,0]
["Beluftningstanke, Mek/EL","PE",20,0,0]
["Beluftningstanke, SRO","PE",10,0,0]
["Efterklaringstanke, Konstruktioner","PE",60,0,0]
["Efterklaringstanke, Mek/El","PE",20,0,0]
["Efterklaringstanke, SRO","PE",10,0,0]
["Efterbehandlingsanlæg (sandfilter), Konstruktioner","PE",60,0,0]
["Efterbehandlingsanlæg (sandfilter), Mek/EL","PE",20,0,0]
["Efterbehandlingsanlæg (sandfilter), SRO","PE",10,0,0]
["Renseanlæg >= 5.000 PE, Slambehandling"]
["Forafvanding, slam, Konstruktion","PE",60,0,0]
["Forafvanding, slam, Mek/EL","PE",20,0,0]
["Forafvanding, slam, SRO","PE",10,0,0]
["Rådnetanke, slam, Konstruktioner","PE",60,0,0]
["Rådnetanke, slam, Mek/EL","PE",20,0,0]
["Rådnetanke, slam, SRO","PE",10,0,0]
["Gasdisponering, Konstruktioner","PE",60,0,0]
["Gasdisponering, Mek/EL","PE",20,0,0]
["Gasdisponering, SRO","PE",10,0,0]
["Gasdisponering - elproduktionsanlæg, Konstruktioner","PE",60,0,0]
["Gasdisponering - elproduktionsanlæg, Mek/EL","PE",20,0,0]
["Gasdisponering - elproduktionsanlæg, SRO","PE",10,0,0]
["Slutafvanding, slam - lavteknologisk (slambede), Konstruktioner","PE",60,0,0]
["Slutafvanding, slam - lavteknologisk (slambede), Mek/EL","PE",20,0,0]
["Slutafvanding, slam - lavteknologisk (slambede), SRO","PE",10,0,0]
["Slutafvanding, slam - højteknologisk (centrifuger), Konstruktioner","PE",60,0,0]
["Slutafvanding, slam - højteknologisk (centrifuger), Mek/El","PE",20,0,0]
["Slutafvanding, slam - højteknologisk (centrifuger), SRO","PE",10,0,0]
["Renseanlæg >= 5.000 PE, Slamdisponering"]
["Slutdisponering, slam - lavteknologisk (slammineralisering), Konstruktioner","PE",60,0,0]
["Slutdisponering, slam - lavteknologisk (slammineralisering), Mek/EL","PE",20,0,0]
["Slutdisponering, slam - lavteknologisk (slammineralisering), SRO","PE",10,0,0]
["Slutdisponering, slam - højteknologisk (slamtørring), Konstruktioner","PE",60,0,0]
["Slutdisponering, slam - højteknologisk (slamtørring), Mek/EL","PE",20,0,0]
["Slutdisponering, slam - højteknologisk (slamtørring), SRO","PE",10,0,0]
["Slutdisponering, slam - højteknologisk (slamtørring og -forbrænding), Konstruktioner","PE",60,0,0]
["Slutdisponering, slam - højteknologisk (slamtørring og -forbrænding), Mek/EL","PE",20,0,0]
["Slutdisponering, slam - højteknologisk (slamtørring og -forbrænding), SRO","PE",10,0,0]
["Mindre renseanlæg"]
["Mindre renseanlæg < 5.000 PE uden mulighed for opdeling","PE",40,0,0]
["Renseanlæg >= 5.000 PE, Vandbehandling"]
["Indløb med riste, Konstruktioner","PE",60,0,0]
["Indløb med riste, Mek/EL","PE",20,0,0]
["Indløb med riste, SRO","PE",10,0,0]
["Sand- og fedtfang, Kontruktioner","PE",60,0,0]
["Sand- og fedtfang, Mek/EL","PE",20,0,0]
["Sand- og fedtfang, SRO","PE",10,0,0]
["Forklaring, Konstruktioner","PE",60,0,0]
["Forklaring, Mek/EL","PE",20,0,0]
["Forklaring, SRO","PE",10,0,0]
["Beluftningstanke, Konstruktioner","PE",60,0,0]
["Beluftningstanke, Mek/EL","PE",20,0,0]
["Beluftningstanke, SRO","PE",10,0,0]
["Efterklaringstanke, Konstruktioner","PE",60,0,0]
["Efterklaringstanke, Mek/El","PE",20,0,0]
["Efterklaringstanke, SRO","PE",10,0,0]
["Efterbehandlingsanlæg (sandfilter), Konstruktioner","PE",60,0,0]
["Efterbehandlingsanlæg (sandfilter), Mek/EL","PE",20,0,0]
["Efterbehandlingsanlæg (sandfilter), SRO","PE",10,0,0]
["Renseanlæg >= 5.000 PE, Slambehandling"]
["Forafvanding, slam, Konstruktion","PE",60,0,0]
["Forafvanding, slam, Mek/EL","PE",20,0,0]
["Forafvanding, slam, SRO","PE",10,0,0]
["Rådnetanke, slam, Konstruktioner","PE",60,0,0]
["Rådnetanke, slam, Mek/EL","PE",20,0,0]
["Rådnetanke, slam, SRO","PE",10,0,0]
["Gasdisponering, Konstruktioner","PE",60,0,0]
["Gasdisponering, Mek/EL","PE",20,0,0]
["Gasdisponering, SRO","PE",10,0,0]
["Gasdisponering - elproduktionsanlæg, Konstruktioner","PE",60,0,0]
["Gasdisponering - elproduktionsanlæg, Mek/EL","PE",20,0,0]
["Gasdisponering - elproduktionsanlæg, SRO","PE",10,0,0]
["Slutafvanding, slam - lavteknologisk (slambede), Konstruktioner","PE",60,0,0]
["Slutafvanding, slam - lavteknologisk (slambede), Mek/EL","PE",20,0,0]
["Slutafvanding, slam - lavteknologisk (slambede), SRO","PE",10,0,0]
["Slutafvanding, slam - højteknologisk (centrifuger), Konstruktioner","PE",60,0,0]
["Slutafvanding, slam - højteknologisk (centrifuger), Mek/El","PE",20,0,0]
["Slutafvanding, slam - højteknologisk (centrifuger), SRO","PE",10,0,0]
["Renseanlæg >= 5.000 PE, Slamdisponering"]
["Slutdisponering, slam - lavteknologisk (slammineralisering), Konstruktioner","PE",60,0,0]
["Slutdisponering, slam - lavteknologisk (slammineralisering), Mek/EL","PE",20,0,0]
["Slutdisponering, slam - lavteknologisk (slammineralisering), SRO","PE",10,0,0]
["Slutdisponering, slam - højteknologisk (slamtørring), Konstruktioner","PE",60,0,0]
["Slutdisponering, slam - højteknologisk (slamtørring), Mek/EL","PE",20,0,0]
["Slutdisponering, slam - højteknologisk (slamtørring), SRO","PE",10,0,0]
["Slutdisponering, slam - højteknologisk (slamtørring og -forbrænding), Konstruktioner","PE",60,0,0]
["Slutdisponering, slam - højteknologisk (slamtørring og -forbrænding), Mek/EL","PE",20,0,0]
["Slutdisponering, slam - højteknologisk (slamtørring og -forbrænding), SRO","PE",10,0,0]

{"sheet":"Distributionsanlæg","index":1,"n_rows":322,"n_cols":6,"rows_kept":322,"cut":false,"hidden":false,"merged":[[0,5,1,5],[0,0,1,0],[0,1,1,1],[0,2,1,2],[0,3,1,3],[0,4,1,4]]}
["Distributionsanlæg","Enhed","Standard-levetid","Samlet mængde per 31/12-2014","Samlet mængde per 31/12-2015","Bemærk-ninger"]
[]
["Ledningsnet - Land"]
["Ledningsnet ≤ Ø 200 mm ","meter",75,{"$f":"(86+9253+287+7462+49245+34094+42442+14673+25094+1648+4488+8255+44054+18372+13144+7985+24097+7145+7100)+135460","v":454384},456574]
["Ø 200 mm < Ledningsnet ≤ Ø 500 mm ","meter",75,{"$f":"(282+190+318+669+4856+18207+4843+13820+7651+7213+181+961+17435+15484+328+501+35+223)+135460","v":228657},229005]
["Ø 500 mm < Ledningsnet ≤ Ø 800 mm","meter",75,{"$f":"32+130+455+258+3218+30+2619+1067+1346+1245+118+92","v":10610},{"$f":"32+130+455+258+3218+30+2619+1067+1346+1245+118+92","v":10610}]
["Ø 800 mm < Ledningsnet ≤ Ø 1000 mm","meter",75,{"$f":"215+2351+72+80+685+27","v":3430},{"$f":"215+2351+72+80+685+27","v":3430}]
["Ø 1000 mm < Ledningsnet ≤ Ø 1200 mm","meter",75,{"$f":"275+221+100+20","v":616},{"$f":"275+221+100+20","v":616}]
["Ø 1200 mm < Ledningsnet ≤ Ø 1600 mm","meter",75,323,323]
["Ledningsnet > Ø 1600 mm (rørbassiner og transportledninger)","meter",75,null,0]
["Strømpeforing ≤ Ø 200 mm","meter",50,null,0]
["Strømpeforing Ø 200 mm < Ledningsnet ≤ Ø 500 mm","meter",50,null,0]
["Strømpeforing Ø 500 mm < Ledningsnet ≤ Ø 800 mm","meter",50,null,0]
["Strømpeforing Ø 800 mm < Ledningsnet ≤ Ø 1000 mm","meter",50,null,0]
["Strømpeforing Ø 1000 mm < Ledningsnet ≤ Ø 1200 mm","meter",50,null,0]
["Strømpeforing Ø 1200 mm < Ledningsnet ≤ Ø 1600 mm","meter",50,null,0]
["Ledningsnet - By"]
["Ledningsnet ≤ Ø 200 mm ","meter",75,{"$f":"(143+739+4757+3473+9008+81089+66526+16727+4438+15227+736+768+4936+3312+25+4262+3836+8026+4035+3497)+35420","v":270980},288330]
["Ø 200 mm < Ledningsnet ≤ Ø 500 mm ","meter",75,{"$f":"(1092+2588+9342+3332+10740+41981+8683+9155+6296+7986+572+878+5907+233+201+581+93+636)+35420+265860","v":411576},411679]
["Ø 500 mm < Ledningsnet ≤ Ø 800 mm","meter",75,{"$f":"139+715+1415+269+1143+5644+3721+2264+138+850+177+689+229+123+91+372+17","v":17996},18561]
["Ø 800 mm < Ledningsnet ≤ Ø 1000 mm","meter",75,{"$f":"489+778+38+2216+845+77+146+166+112","v":4867},5188]
["Ø 1000 mm < Ledningsnet ≤ Ø 1200 mm","meter",75,{"$f":"90+402+1172+245","v":1909},1909]
["Ø 1200 mm < Ledningsnet ≤ Ø 1600 mm","meter",75,null,0]
["Ledningsnet > Ø 1600 mm (rørbassiner og transportledninger)","meter",75,null,0]
["Strømpeforing ≤ Ø 200 mm","meter",50,null,0]
["Strømpeforing Ø 200 mm < Ledningsnet ≤ Ø 500 mm","meter",50,null,0]
["Strømpeforing Ø 500 mm < Ledningsnet ≤ Ø 800 mm","meter",50,null,0]
["Strømpeforing Ø 800 mm < Ledningsnet ≤ Ø 1000 mm","meter",50,null,0]
["Strømpeforing Ø 1000 mm < Ledningsnet ≤ Ø 1200 mm","meter",50,null,0]
["Strømpeforing Ø 1200 mm < Ledningsnet ≤ Ø 1600 mm","meter",50,null,0]
["Ledningsnet - City"]
["Ledningsnet ≤ Ø 200 mm ","meter",75,9000,9000]
["Ø 200 mm < Ledningsnet ≤ Ø 500 mm ","meter",75,0,0]
["Ø 500 mm < Ledningsnet ≤ Ø 800 mm","meter",75,0,0]
["Ø 800 mm < Ledningsnet ≤ Ø 1000 mm","meter",75,0,0]
["Ø 1000 mm < Ledningsnet ≤ Ø 1200 mm","meter",75,0,0]
["Ø 1200 mm < Ledningsnet ≤ Ø 1600 mm","meter",75,0,0]
["Ledningsnet > Ø 1600 mm (rørbassiner og transportledninger)","meter",75,0,0]
["Strømpeforing ≤ Ø 200 mm","meter",50,0,0]
["Strømpeforing Ø 200 mm < Ledningsnet ≤ Ø 500 mm","meter",50,0,0]
["Strømpeforing Ø 500 mm < Ledningsnet ≤ Ø 800 mm","meter",50,0,0]
["Strømpeforing Ø 800 mm < Ledningsnet ≤ Ø 1000 mm","meter",50,0,0]
["Strømpeforing Ø 1000 mm < Ledningsnet ≤ Ø 1200 mm","meter",50,0,0]
["Strømpeforing Ø 1200 mm < Ledningsnet ≤ Ø 1600 mm","meter",50,0,0]
["Ledningsnet - Indre city"]
["Ledningsnet ≤ Ø 200 mm ","meter",75,0]
["Ø 200 mm < Ledningsnet ≤ Ø 500 mm ","meter",75,0]
["Ø 500 mm < Ledningsnet ≤ Ø 800 mm","meter",75,0]
["Ø 800 mm < Ledningsnet ≤ Ø 1000 mm","meter",75,0]
["Ø 1000 mm < Ledningsnet ≤ Ø 1200 mm","meter",75,0]
["Ø 1200 mm < Ledningsnet ≤ Ø 1600 mm","meter",75,0]
["Ledningsnet > Ø 1600 mm (rørbassiner og transportledninger)","meter",75,0]
["Strømpeforing ≤ Ø 200 mm","meter",50,0]
["Strømpeforing Ø 200 mm < Ledningsnet ≤ Ø 500 mm","meter",50,0]
["Strømpeforing Ø 500 mm < Ledningsnet ≤ Ø 800 mm","meter",50,0]
["Strømpeforing Ø 800 mm < Ledningsnet ≤ Ø 1000 mm","meter",50,0]
["Strømpeforing Ø 1000 mm < Ledningsnet ≤ Ø 1200 mm","meter",50,0]
["Strømpeforing Ø 1200 mm < Ledningsnet ≤ Ø 1600 mm","meter",50]
["Brønde og stik, ledningsnet - Land"]
["Brønde","stk.",75,{"$f":"7+4+163+23+157+553+360+915+261+473+77+51+79+615+353+261+110+192+78+81","v":4813},4915]
["Stik","stk.",75,{"$f":"9+8+310+36+270+1021+2448+1107+361+569+34+36+189+583+297+158+153+289+65+98","v":8041},8080]
["Brønde og stik, ledningsnet - By"]
["Brønde","stk.",75,{"$f":"36+123+476+181+516+2219+1248+155+100+408+14+10+26+56+48+53+106+114+101+28","v":6018},6198]
["Stik","stk.",75,{"$f":"58+234+719+335+959+4882+5522+549+384+963+59+77+145+87+110+172+170+228+173+125","v":15951},15951]
["Brønde og stik, ledningsnet - City"]
["Brønde","stk.",75,0]
["Stik","stk.",75,0]
["Brønde og stik, ledningsnet - Indre city"]
["Brønde","stk.",75,0]
["Stik","stk.",75,0]
["Små pumpestationer inkl. SRO-anlæg - Land"]
["Tryksatte minipumpestationer (husstandssystemer)","stk.",30,{"$f":"(1+2+1+1)+16","v":21},20]
["Pumpestationer i brønde (< 6,25 m2), Konstruktioner","stk.",50,{"$f":"(1+9+5+10+12+4+7+6+2+3+3+1+3+2)-16-7","v":45},{"$f":"D73","v":45}]
["Pumpestationer i brønde (< 6,25 m2), Mek/EL","stk.",20,{"$f":"(1+9+5+10+12+4+7+6+2+3+3+1+3+2)-16-7","v":45},{"$f":"D74","v":45}]
["Pumpestationer i brønde (< 6,25 m2), SRO","stk.",10,{"$f":"(7+4+9+10+2+6+6+2+2+1+3+2)-16-7","v":31},31]
["Pumpestationer m. overbygning (< 20 m2), Konstruktioner","stk.",50,{"$f":"(1+7+2+4+1+1+1+2+1+2+1)-8","v":15},15]
["Pumpestationer m. overbygning (< 20 m2), Mek/EL","stk.",20,{"$f":"(1+7+2+4+1+1+1+2+1+2+1)-8","v":15},15]
["Pumpestationer m. overbygning (< 20 m2), SRO","stk.",10,{"$f":"(1+7+2+3+1+1+1+2+1+2+1)-8","v":14},14]
["Pumpestationer i underjordiske bygværker (<50 m2), Konstruktioner","stk.",50,{"$f":"(1+1+2+4)-2","v":6},6]
["Pumpestationer i underjordiske bygværker (<50 m2), Mek/El","stk.",20,{"$f":"(1+1+2+4)-2","v":6},6]
["Pumpestationer i underjordiske bygværker (<50 m2), SRO","stk.",10,{"$f":"(1+1+2+4)-2","v":6},6]
["Små pumpestationer inkl. SRO-anlæg - By"]
["Tryksatte minipumpestationer (husstandssystemer)","stk.",30,0,{"$f":"D83","v":0}]
["Pumpestationer i brønde (< 6,25 m2), Konstruktioner","stk.",50,{"$f":"(1+27+15+2+14+3+4+1+2+6+1+1)-27","v":50},51]
["Pumpestationer i brønde (< 6,25 m2), Mek/EL","stk.",20,{"$f":"(1+27+15+2+14+3+4+1+2+6+1+1)-27","v":50},51]
["Pumpestationer i brønde (< 6,25 m2), SRO","stk.",10,{"$f":"(1+15+15+9+3+2+1+6+1+1)-27","v":27},28]
["Pumpestationer m. overbygning (< 20 m2), Konstruktioner","stk.",50,{"$f":"(1+1+1+1)","v":4},{"$f":"D87","v":4}]
["Pumpestationer m. overbygning (< 20 m2), Mek/EL","stk.",20,{"$f":"(1+1+1+1)","v":4},4]
["Pumpestationer m. overbygning (< 20 m2), SRO","stk.",10,{"$f":"(1+1+1+1)","v":4},4]
["Pumpestationer i underjordiske bygværker (<50 m2), Konstruktioner","stk.",50,0,0]
["Pumpestationer i underjordiske bygværker (<50 m2), Mek/El","stk.",20,0,0]
["Pumpestationer i underjordiske bygværker (<50 m2), SRO","stk.",10,0,0]
["Små pumpestationer inkl. SRO-anlæg - City"]
["Tryksatte minipumpestationer (husstandssystemer)","stk.",30,0]
["Pumpestationer i brønde (< 6,25 m2), Konstruktioner","stk.",50,0]
["Pumpestationer i brønde (< 6,25 m2), Mek/EL","stk.",20,0]
["Pumpestationer i brønde (< 6,25 m2), SRO","stk.",10,0]
["Pumpestationer m. overbygning (< 20 m2), Konstruktioner","stk.",50,0]
["Pumpestationer m. overbygning (< 20 m2), Mek/EL","stk.",20,0]
["Pumpestationer m. overbygning (< 20 m2), SRO","stk.",10,0]
["Pumpestationer i underjordiske bygværker (<50 m2), Konstruktioner","stk.",50,0]
["Pumpestationer i underjordiske bygværker (<50 m2), Mek/El","stk.",20,0]
["Pumpestationer i underjordiske bygværker (<50 m2), SRO","stk.",10,0]
["Små pumpestationer inkl. SRO-anlæg - Indre city"]
["Tryksatte minipumpestationer (husstandssystemer)","stk.",30,0]
["Pumpestationer i brønde (< 6,25 m2), Konstruktioner","stk.",50,0]
["Pumpestationer i brønde (< 6,25 m2), Mek/EL","stk.",20,0]
["Pumpestationer i brønde (< 6,25 m2), SRO","stk.",10,0]
["Pumpestationer m. overbygning (< 20 m2), Konstruktioner","stk.",50,0]
["Pumpestationer m. overbygning (< 20 m2), Mek/EL","stk.",20,0]
["Pumpestationer m. overbygning (< 20 m2), SRO","stk.",10,0]
["Pumpestationer i underjordiske bygværker (<50 m2), Konstruktioner","stk.",50,0]
["Pumpestationer i underjordiske bygværker (<50 m2), Mek/El","stk.",20,0]
["Pumpestationer i underjordiske bygværker (<50 m2), SRO","stk.",10,0]
["Store pumpestationer: inkl. SRO-anlæg - Land"]
["Kælder","m2",75,{"$f":"10+13","v":23},23]
["Pumpeinstallation Miljøklasse A (100-300 l/s) - Mek/EL","stk.",20,0,0]
["Pumpeinstallation Miljøklasse A (100-300 l/s) - SRO","stk.",10,0,0]
["Pumpeinstallation Miljøklasse A (300-600 l/s) - Mek/EL","stk.",20,0,0]
["Pumpeinstallation Miljøklasse A (300-600 l/s) - SRO","stk.",10,0,0]
["Pumpeinstallation Miljøklasse A (600-1.000 l/s) - Mek/EL","stk.",20,0,0]
["Pumpeinstallation Miljøklasse A (600-1.000 l/s) - SRO","stk.",10,0,0]
["Pumpeinstallation Miljøklasse A (1.000-1.500 l/s) - Mek/EL","stk.",20,0,0]
["Pumpeinstallation Miljøklasse A (1.000-1.500 l/s) - SRO","stk.",10,0,0]
["Pumpeinstallation Miljøklasse B (100-300 l/s) - Mek/EL","stk.",20,{"$f":"(1+1)+7+8+2+3","v":22},23]
["Pumpeinstallation Miljøklasse B (100-300 l/s) - SRO","stk.",10,{"$f":"(1+1)+7+8+2+3","v":22},23]
["Pumpeinstallation Miljøklasse B (300-600 l/s) - Mek/EL","stk.",20,6,6]
["Pumpeinstallation Miljøklasse B (300-600 l/s) - SRO","stk.",10,6,6]
["Pumpeinstallation Miljøklasse B (600-1.000 l/s) - Mek/EL","stk.",20,0,0]
["Pumpeinstallation Miljøklasse B (600-1.000 l/s) - SRO","stk.",10,0,0]
["Pumpeinstallation Miljøklasse B (1.000-1.500 l/s) - Mek/EL","stk.",20,0,0]
["Pumpeinstallation Miljøklasse B (1.000-1.500 l/s) - SRO","stk.",10,0,0]
["Overbygning","m2",75,13,13]
["Store pumpestationer: inkl. SRO-anlæg - By"]
["Kælder","m2",75,{"$f":"20+25+10","v":55},55]
["Pumpeinstallation Miljøklasse A (100-300 l/s) - Mek/EL","stk.",20,0,0]
["Pumpeinstallation Miljøklasse A (100-300 l/s) - SRO","stk.",10,0,0]
["Pumpeinstallation Miljøklasse A (300-600 l/s) - Mek/EL","stk.",20,0,0]
["Pumpeinstallation Miljøklasse A (300-600 l/s) - SRO","stk.",10,0,0]
["Pumpeinstallation Miljøklasse A (600-1.000 l/s) - Mek/EL","stk.",20,0,0]
["Pumpeinstallation Miljøklasse A (600-1.000 l/s) - SRO","stk.",10,0,0]
["Pumpeinstallation Miljøklasse A (1.000-1.500 l/s) - Mek/EL","stk.",20,0,0]
["Pumpeinstallation Miljøklasse A (1.000-1.500 l/s) - SRO","stk.",10,0,0]
["Pumpeinstallation Miljøklasse B (100-300 l/s) - Mek/EL","stk.",20,{"$f":"(1+1+1)+27+1+4","v":35},36]
["Pumpeinstallation Miljøklasse B (100-300 l/s) - SRO","stk.",10,{"$f":"(1+1+1)+27+1+4","v":35},36]
["Pumpeinstallation Miljøklasse B (300-600 l/s) - Mek/EL","stk.",20,0,0]
["Pumpeinstallation Miljøklasse B (300-600 l/s) - SRO","stk.",10,0,0]
["Pumpeinstallation Miljøklasse B (600-1.000 l/s) - Mek/EL","stk.",20,1,1]
["Pumpeinstallation Miljøklasse B (600-1.000 l/s) - SRO","stk.",10,1,1]
["Pumpeinstallation Miljøklasse B (1.000-1.500 l/s) - Mek/EL","stk.",20,1,1]
["Pumpeinstallation Miljøklasse B (1.000-1.500 l/s) - SRO","stk.",10,1,1]
["Overbygning ","m2",75,{"$f":"50+40+15","v":105},105]
["Store pumpestationer: inkl. SRO-anlæg - City"]
["Kælder","m2",75,0]
["Pumpeinstallation Miljøklasse A (100-300 l/s) - Mek/EL","stk.",20,0]
["Pumpeinstallation Miljøklasse A (100-300 l/s) - SRO","stk.",10,0]
["Pumpeinstallation Miljøklasse A (300-600 l/s) - Mek/EL","stk.",20,0]
["Pumpeinstallation Miljøklasse A (300-600 l/s) - SRO","stk.",10,0]
["Pumpeinstallation Miljøklasse A (600-1.000 l/s) - Mek/EL","stk.",20,0]
["Pumpeinstallation Miljøklasse A (600-1.000 l/s) - SRO","stk.",10,0]
["Pumpeinstallation Miljøklasse A (1.000-1.500 l/s) - Mek/EL","stk.",20,0]
["Pumpeinstallation Miljøklasse A (1.000-1.500 l/s) - SRO","stk.",10,0]
["Pumpeinstallation Miljøklasse B (100-300 l/s) - Mek/EL","stk.",20,0]
["Pumpeinstallation Miljøklasse B (100-300 l/s) - SRO","stk.",10,0]
["Pumpeinstallation Miljøklasse B (300-600 l/s) - Mek/EL","stk.",20,0]
["Pumpeinstallation Miljøklasse B (300-600 l/s) - SRO","stk.",10,0]
["Pumpeinstallation Miljøklasse B (600-1.000 l/s) - Mek/EL","stk.",20,0]
["Pumpeinstallation Miljøklasse B (600-1.000 l/s) - SRO","stk.",10,0]
["Pumpeinstallation Miljøklasse B (1.000-1.500 l/s) - Mek/EL","stk.",20,0]
["Pumpeinstallation Miljøklasse B (1.000-1.500 l/s) - SRO","stk.",10,0]
["Overbygning ","m2",75,0]
["Store pumpestationer: inkl. SRO-anlæg - Indre city"]
["Kælder","m2",75,0]
["Pumpeinstallation Miljøklasse A (100-300 l/s) - Mek/EL","stk.",20,0]
["Pumpeinstallation Miljøklasse A (100-300 l/s) - SRO","stk.",10,0]
["Pumpeinstallation Miljøklasse A (300-600 l/s) - Mek/EL","stk.",20,0]
["Pumpeinstallation Miljøklasse A (300-600 l/s) - SRO","stk.",10,0]
["Pumpeinstallation Miljøklasse A (600-1.000 l/s) - Mek/EL","stk.",20,0]
["Pumpeinstallation Miljøklasse A (600-1.000 l/s) - SRO","stk.",10,0]
["Pumpeinstallation Miljøklasse A (1.000-1.500 l/s) - Mek/EL","stk.",20,0]
["Pumpeinstallation Miljøklasse A (1.000-1.500 l/s) - SRO","stk.",10,0]
["Pumpeinstallation Miljøklasse B (100-300 l/s) - Mek/EL","stk.",20,0]
["Pumpeinstallation Miljøklasse B (100-300 l/s) - SRO","stk.",10,0]
["Pumpeinstallation Miljøklasse B (300-600 l/s) - Mek/EL","stk.",20,0]
["Pumpeinstallation Miljøklasse B (300-600 l/s) - SRO","stk.",10,0]
["Pumpeinstallation Miljøklasse B (600-1.000 l/s) - Mek/EL","stk.",20,0]
["Pumpeinstallation Miljøklasse B (600-1.000 l/s) - SRO","stk.",10,0]
["Pumpeinstallation Miljøklasse B (1.000-1.500 l/s) - Mek/EL","stk.",20,0]
["Pumpeinstallation Miljøklasse B (1.000-1.500 l/s) - SRO","stk.",10,0]
["Overbygning","m2",75,0]
["Overløbsbygværker - Land"]
["Kælder (< 7 m2) ","stk.",75,{"$f":"1+1+3+11+4","v":20},20]
["Kælder (7 - 20 m2) ","m2",75,0,0]
["Kælder (20 - 30 m2)","m2",75,0,0]
["Installationer \"ingen eller faste riste\" (mindre end 7 m2)","stk.",20,{"$f":"1+1+3+11+4","v":20},20]
["Installationer \"mekaniske riste og SRO\" Miljøklasse A. (7-20 m2) - Mek/EL","stk.",20,0,0]
["Installationer \"mekaniske riste og SRO\" Miljøklasse A. (7-20 m2) - SRO","stk.",10,0,0]
["Installationer \"mekaniske riste og SRO\" Miljøklasse A. (20-30 m2) - Mek/EL","stk.",20,0,0]
["Installationer \"mekaniske riste og SRO\" Miljøklasse A. (20-30 m2) - SRO","stk.",10,0,0]
["Installationer \"mekaniske riste og SRO\" Miljøklasse B. (7-20 m2) - Mek/EL","stk.",20,0,0]
["Installationer \"mekaniske riste og SRO\" Miljøklasse B. (7-20 m2) - SRO","stk.",10,0,0]
["Installationer \"mekaniske riste og SRO\" Miljøklasse B. (20-30 m2) - Mek/EL","stk.",20,0,0]
["Installationer \"mekaniske riste og SRO\" Miljøklasse B. (20-30 m2) - SRO","stk.",10,0,0]
["Overbygning","stk.",75,0,0]
["Overløbsbygværker - By"]
["Kælder (< 7 m2) ","stk.",75,{"$f":"6+16+3+1+1+1","v":28},28]
["Kælder (7 - 20 m2) ","m2",75,0,0]
["Kælder (20 - 30 m2)","m2",75,0,0]
["Installationer \"ingen eller faste riste\" (mindre end 7 m2)","stk.",20,{"$f":"6+16+3+1+1+1","v":28},28]
["Installationer \"mekaniske riste og SRO\" Miljøklasse A. (7-20 m2) - Mek/EL","stk.",20,0,0]
["Installationer \"mekaniske riste og SRO\" Miljøklasse A. (7-20 m2) - SRO","stk.",10,0,0]
["Installationer \"mekaniske riste og SRO\" Miljøklasse A. (20-30 m2) - Mek/EL","stk.",20,0,0]
["Installationer \"mekaniske riste og SRO\" Miljøklasse A. (20-30 m2) - SRO","stk.",10,0,0]
["Installationer \"mekaniske riste og SRO\" Miljøklasse B. (7-20 m2) - Mek/EL","stk.",20,0,0]
["Installationer \"mekaniske riste og SRO\" Miljøklasse B. (7-20 m2) - SRO","stk.",10,0,0]
["Installationer \"mekaniske riste og SRO\" Miljøklasse B. (20-30 m2) - Mek/EL","stk.",20,0,0]
["Installationer \"mekaniske riste og SRO\" Miljøklasse B. (20-30 m2) - SRO","stk.",10,0,0]
["Overbygning","stk.",75,0,0]
["Overløbsbygværker - City"]
["Kælder (< 7 m2) ","stk.",75,0]
["Kælder (7 - 20 m2) ","m2",75,0]
["Kælder (20 - 30 m2)","m2",75,0]
["Installationer \"ingen eller faste riste\" (mindre end 7 m2)","stk.",20,0]
["Installationer \"mekaniske riste og SRO\" Miljøklasse A. (7-20 m2) - Mek/EL","stk.",20,0]
["Installationer \"mekaniske riste og SRO\" Miljøklasse A. (7-20 m2) - SRO","stk.",10,0]
["Installationer \"mekaniske riste og SRO\" Miljøklasse A. (20-30 m2) - Mek/EL","stk.",20,0]
["Installationer \"mekaniske riste og SRO\" Miljøklasse A. (20-30 m2) - SRO","stk.",10,0]
["Installationer \"mekaniske riste og SRO\" Miljøklasse B. (7-20 m2) - Mek/EL","stk.",20,0]
["Installationer \"mekaniske riste og SRO\" Miljøklasse B. (7-20 m2) - SRO","stk.",10,0]
["Installationer \"mekaniske riste og SRO\" Miljøklasse B. (20-30 m2) - Mek/EL","stk.",20,0]
["Installationer \"mekaniske riste og SRO\" Miljøklasse B. (20-30 m2) - SRO","stk.",10,0]
["Overbygning (efter beliggenhed) ","stk.",75,0]
["Overløbsbygværker - Indre city"]
["Kælder (< 7 m2) ","stk.",75,0]
["Kælder (7 - 20 m2) ","m2",75,0]
["Kælder (20 - 30 m2)","m2",75,0]
["Installationer \"ingen eller faste riste\" (mindre end 7 m2)","stk.",20,0]
["Installationer \"mekaniske riste og SRO\" Miljøklasse A. (7-20 m2) - Mek/EL","stk.",20,0]
["Installationer \"mekaniske riste og SRO\" Miljøklasse A. (7-20 m2) - SRO","stk.",10,0]
["Installationer \"mekaniske riste og SRO\" Miljøklasse A. (20-30 m2) - Mek/EL","stk.",20,0]
["Installationer \"mekaniske riste og SRO\" Miljøklasse A. (20-30 m2) - SRO","stk.",10,0]
["Installationer \"mekaniske riste og SRO\" Miljøklasse B. (7-20 m2) - Mek/EL","stk.",20,0]
["Installationer \"mekaniske riste og SRO\" Miljøklasse B. (7-20 m2) - SRO","stk.",10,0]
["Installationer \"mekaniske riste og SRO\" Miljøklasse B. (20-30 m2) - Mek/EL","stk.",20,0]
["Installationer \"mekaniske riste og SRO\" Miljøklasse B. (20-30 m2) - SRO","stk.",10,0]
["Overbygning","stk.",75,0]
["Forsinkelsesbassiner - Land"]
["Forsinkelsesbassiner, lukkede uden automatisk rensning og SRO Miljøklasse B (mindre end 1.000 m3)","m³",50,{"$f":"(2450+400+1440+2685+215+645+760)+17437+2523","v":28555},{"$f":"D248+440","v":28995}]
["Forsinkelsesbassiner, lukkede med automatisk rensning og SRO Miljøklasse A (500-1.000 m3) - Konstruktioner","m³",75,0,{"$f":"D249","v":0}]
["Forsinkelsesbassiner, lukkede med automatisk rensning og SRO Miljøklasse A (500-1.000 m3) - Mek/EL","m³",20,0,{"$f":"D250","v":0}]
["Forsinkelsesbassiner, lukkede med automatisk rensning og SRO Miljøklasse A (500-1.000 m3) - SRO ","m³",10,0,0]
["Forsinkelsesbassiner, lukkede med automatisk rensning og SRO Miljøklasse A (1.000-3.000 m3) - Konstruktioner","m³",75,0,0]
["Forsinkelsesbassiner, lukkede med automatisk rensning og SRO Miljøklasse A (1.000-3.000 m3) - Mek/EL","m³",20,0,0]
["Forsinkelsesbassiner, lukkede med automatisk rensning og SRO Miljøklasse A (1.000-3.000 m3) - SRO","m³",10,0,0]
["Forsinkelsesbassiner, lukkede med automatisk rensning og SRO Miljøklasse A (5.000-10.000 m3) - Konstruktionre","m³",75,0,0]
["Forsinkelsesbassiner, lukkede med automatisk rensning og SRO Miljøklasse A (5.000-10.000 m3) - Mek/EL","m³",20,0,0]
["Forsinkelsesbassiner, lukkede med automatisk rensning og SRO Miljøklasse A (5.000-10.000 m3) - SRO","m³",10,0,0]
["Forsinkelsesbassiner, lukkede med automatisk rensning og SRO Miljøklasse A (større end 10.000 m3) - Konstruktioner","m³",75,0,0]
["Forsinkelsesbassiner, lukkede med automatisk rensning og SRO Miljøklasse A (større end 10.000 m3) - Mek/EL","m³",20,0,0]
["Forsinkelsesbassiner, lukkede med automatisk rensning og SRO Miljøklasse A (større end 10.000 m3) - SRO","m³",10,0,0]
["Forsinkelsesbassiner - By"]
["Forsinkelsesbassiner, lukkede uden automatisk rensning og SRO Miljøklasse B (mindre end 1.000 m3)","m³",50,{"$f":"(30+2060+1500)+7043+1031","v":11664},{"$f":"D262","v":11664}]
["Forsinkelsesbassiner, lukkede med automatisk rensning og SRO Miljøklasse A (500-1.000 m3) - Konstruktioner","m³",75,0,{"$f":"D263","v":0}]
["Forsinkelsesbassiner, lukkede med automatisk rensning og SRO Miljøklasse A (500-1.000 m3) - Mek/EL","m³",20,0,0]
["Forsinkelsesbassiner, lukkede med automatisk rensning og SRO Miljøklasse A (500-1.000 m3) - SRO ","m³",10,0,0]
["Forsinkelsesbassiner, lukkede med automatisk rensning og SRO Miljøklasse A (1.000-3.000 m3) - Konstruktioner","m³",75,0,0]
["Forsinkelsesbassiner, lukkede med automatisk rensning og SRO Miljøklasse A (1.000-3.000 m3) - Mek/EL","m³",20,0,0]
["Forsinkelsesbassiner, lukkede med automatisk rensning og SRO Miljøklasse A (1.000-3.000 m3) - SRO","m³",10,0,0]
["Forsinkelsesbassiner, lukkede med automatisk rensning og SRO Miljøklasse A (5.000-10.000 m3) - Konstruktionre","m³",75,0,0]
["Forsinkelsesbassiner, lukkede med automatisk rensning og SRO Miljøklasse A (5.000-10.000 m3) - Mek/EL","m³",20,0,0]
["Forsinkelsesbassiner, lukkede med automatisk rensning og SRO Miljøklasse A (5.000-10.000 m3) - SRO","m³",10,0,0]
["Forsinkelsesbassiner, lukkede med automatisk rensning og SRO Miljøklasse A (større end 10.000 m3) - Konstruktioner","m³",75,0,0]
["Forsinkelsesbassiner, lukkede med automatisk rensning og SRO Miljøklasse A (større end 10.000 m3) - Mek/EL","m³",20,0,0]
["Forsinkelsesbassiner, lukkede med automatisk rensning og SRO Miljøklasse A (større end 10.000 m3) - SRO","m³",10,0,0]
["Forsinkelsesbassiner - City"]
["Forsinkelsesbassiner, lukkede uden automatisk rensning og SRO Miljøklasse B (mindre end 1.000 m3)","m³",50,0]
["Forsinkelsesbassiner, lukkede med automatisk rensning og SRO Miljøklasse A (500-1.000 m3) - Konstruktioner","m³",75,0]
["Forsinkelsesbassiner, lukkede med automatisk rensning og SRO Miljøklasse A (500-1.000 m3) - Mek/EL","m³",20,0]
["Forsinkelsesbassiner, lukkede med automatisk rensning og SRO Miljøklasse A (500-1.000 m3) - SRO ","m³",10,0]
["Forsinkelsesbassiner, lukkede med automatisk rensning og SRO Miljøklasse A (1.000-3.000 m3) - Konstruktioner","m³",75,0]
["Forsinkelsesbassiner, lukkede med automatisk rensning og SRO Miljøklasse A (1.000-3.000 m3) - Mek/EL","m³",20,0]
["Forsinkelsesbassiner, lukkede med automatisk rensning og SRO Miljøklasse A (1.000-3.000 m3) - SRO","m³",10,0]
["Forsinkelsesbassiner, lukkede med automatisk rensning og SRO Miljøklasse A (5.000-10.000 m3) - Konstruktionre","m³",75,0]
["Forsinkelsesbassiner, lukkede med automatisk rensning og SRO Miljøklasse A (5.000-10.000 m3) - Mek/EL","m³",20,0]
["Forsinkelsesbassiner, lukkede med automatisk rensning og SRO Miljøklasse A (5.000-10.000 m3) - SRO","m³",10,0]
["Forsinkelsesbassiner, lukkede med automatisk rensning og SRO Miljøklasse A (større end 10.000 m3) - Konstruktioner","m³",75,0]
["Forsinkelsesbassiner, lukkede med automatisk rensning og SRO Miljøklasse A (større end 10.000 m3) - Mek/EL","m³",20,0]
["Forsinkelsesbassiner, lukkede med automatisk rensning og SRO Miljøklasse A (større end 10.000 m3) - SRO","m³",10,0]
["Forsinkelsesbassiner - Indre city"]
["Forsinkelsesbassiner, lukkede uden automatisk rensning og SRO Miljøklasse B (mindre end 1.000 m3)","m³",50,0]
["Forsinkelsesbassiner, lukkede med automatisk rensning og SRO Miljøklasse A (500-1.000 m3) - Konstruktioner","m³",75,0]
["Forsinkelsesbassiner, lukkede med automatisk rensning og SRO Miljøklasse A (500-1.000 m3) - Mek/EL","m³",20,0]
["Forsinkelsesbassiner, lukkede med automatisk rensning og SRO Miljøklasse A (500-1.000 m3) - SRO ","m³",10,0]
["Forsinkelsesbassiner, lukkede med automatisk rensning og SRO Miljøklasse A (1.000-3.000 m3) - Konstruktioner","m³",75,0]
["Forsinkelsesbassiner, lukkede med automatisk rensning og SRO Miljøklasse A (1.000-3.000 m3) - Mek/EL","m³",20,0]
["Forsinkelsesbassiner, lukkede med automatisk rensning og SRO Miljøklasse A (1.000-3.000 m3) - SRO","m³",10,0]
["Forsinkelsesbassiner, lukkede med automatisk rensning og SRO Miljøklasse A (5.000-10.000 m3) - Konstruktionre","m³",75,0]
["Forsinkelsesbassiner, lukkede med automatisk rensning og SRO Miljøklasse A (5.000-10.000 m3) - Mek/EL","m³",20,0]
["Forsinkelsesbassiner, lukkede med automatisk rensning og SRO Miljøklasse A (5.000-10.000 m3) - SRO","m³",10,0]
["Forsinkelsesbassiner, lukkede med automatisk rensning og SRO Miljøklasse A (større end 10.000 m3) - Konstruktioner","m³",75,0]
["Forsinkelsesbassiner, lukkede med automatisk rensning og SRO Miljøklasse A (større end 10.000 m3) - Mek/EL","m³",20,0]
["Forsinkelsesbassiner, lukkede med automatisk rensning og SRO Miljøklasse A (større end 10.000 m3) - SRO","m³",10,0]
["Sparebassin/laguner - Land"]
["Jordbassin Klasse B","m³",50,{"$f":"(5500+1400+1500+300+3600+300+1070+1000)+18108+3639","v":36417},{"$f":"D304","v":36417}]
["Jordbassin Klasse A","m³",50,0,{"$f":"D305","v":0}]
["Indløb-/udløbsarrangement","stk.",75,{"$f":"1+1+1+1+10+2+2+2","v":20},20]
["Andre bygninger (tekniske installationer, målere mv.)","m2",75,0,0]
["Sparebassin/laguner - By"]
["Jordbassin Klasse B","m³",50,{"$f":"(7000+2400+1500+1000+300)+15721+3099","v":31020},{"$f":"D309","v":31020}]
["Jordbassin Klasse A","m³",50,0,{"$f":"D310","v":0}]
["Indløb-/udløbsarrangement","stk.",75,{"$f":"1+3+2+1+1","v":8},8]
["Andre bygninger (tekniske installationer, målere mv.)","m2",75,0,0]
["Sparebassin/laguner - City"]
["Jordbassin Klasse B","m³",50,0]
["Jordbassin Klasse A","m³",50,0]
["Indløb-/udløbsarrangement","stk.",75,0]
["Andre bygninger (tekniske installationer, målere mv.)","m2",75,0]
["Sparebassin/laguner  - Indre city"]
["Jordbassin Klasse B","m³",50,0]
["Jordbassin Klasse A","m³",50,0]
["Indløb-/udløbsarrangement","stk.",75,0]
["Andre bygninger (tekniske installationer, målere mv.)","m2",75,0]

{"sheet":"Fællesfunktionsanlæg","index":2,"n_rows":16,"n_cols":6,"rows_kept":16,"cut":false,"hidden":false,"merged":[[0,5,1,5],[0,0,1,0],[0,1,1,1],[0,2,1,2],[0,3,1,3],[0,4,1,4]]}
["Fællesfunktionsanlæg","Enhed","Standard-levetid","Samlet mængde per 31/12-2014","Samlet mængde per 31/12-2015","Bemærk-ninger"]
[]
[]
["Andre"]
["Administrationbygninger","m2",75,{"$f":"526+112","v":638},{"$f":"D5","v":638}]
["Arbejdsplads og kontor","stk.",5,11,12]
["Køretøjer, personbil","stk.",5,{"$f":"(2+1)+1","v":4},{"$f":"D7","v":4}]
["Køretøjer, små lastvogne (< 3.500 kg.)","stk.",5,{"$f":"(1+1+1+2+1+1+2)-1","v":8},{"$f":"D8","v":8}]
["Køretøjer, store lastvogne (> 3.500 kg.)","stk.",5,1,1]
["Køretøjer, entreprenørmaskiner","stk.",5,1,2]
["Slamsugere","stk.",5,2,{"$f":"D11","v":2}]
["Værksteder, garager","m2",75,{"$f":"507+1330+1215+137","v":3189},{"$f":"D12","v":3189}]
["Øvrige"]
["Solcelleanlæg","KWh",25,0]
["EDB, tablets og navigationsudstyr","stk.",5,0]
["Elektroniske kort","stk.",5,0]

{"sheet":"Drop downliste","index":3,"n_rows":13,"n_cols":11,"rows_kept":13,"cut":false,"hidden":true,"merged":[]}
[]
[null,"datakvalitet","Serviceselskab","Overheads","Infrastrukturomlægninger","Infrastruktur per år","år 1","år 2","år 3","år 4","år 5"]
[null,null,null,null,null,null,2010,2011,2012,2013,2014]
[null,1,"ja","Full-cost","ja",0.1]
[null,2,"nej","Direct-cost","nej",0.2]
[null,3,null,"Nøgletalsfordeling",null,0.3]
[null,null,null,"Activity based cost",null,0.4]
[null,null,null,"Andet",null,0.5]
[null,null,null,null,null,0.6]
[null,null,null,null,null,0.7]
[null,null,null,null,null,0.8]
[null,null,null,null,null,0.9]
[null,null,null,null,null,1]